bitfinex-derivatives/quotes_SOLF0:USTF0_20250523
["timestamp","ask_amount","ask_price","bid_price","bid_amount"]
[1747975276715,134.72,182.14,182.06,1.9196]
[1747975277012,134.72,182.14,182.07,1.9029]
[1747975277213,0.03637876,182.12,182.09,0.03535916]
[1747975277414,0.03637876,182.12,182.09,5.52635916]
[1747975277613,0.03637876,182.12,182.09,0.03535916]
[1747975279711,0.03637876,182.12,182.09,5.52655916]
[1747975280617,0.03637876,182.12,182.09,0.03535916]
[1747975280811,5.4906,182.11,182.09,0.03535916]
[1747975281312,134.72,182.2,182.09,0.03535916]
[1747975281612,5.49405521,182.19,182.07,3.873]
[1747975282011,5.49405521,182.16,182.07,3.873]
[1747975282311,5.4906,182.11,182.1,0.03663236]
[1747975282508,134.72,182.11,182.09,0.04204593]
[1747975282713,134.72,182.11,182.08,0.03537321]
[1747975282910,134.76154663,182.11,182.08,0.03537321]
[1747975283613,5.4912,182.09,182.08,0.03537321]
[1747975284111,134.76154663,182.11,182.08,0.03537321]
[1747975284615,134.76154663,182.11,182.08,5.52667321]
[1747975285719,134.76154663,182.11,182.08,0.03537321]
[1747975285914,140.25224663,182.11,182.08,0.03537321]
[1747975286113,134.76154663,182.11,182.08,0.03537321]
[1747975286314,5.4912,182.09,182.08,0.03537321]
[1747975292619,5.4927,182.05,182.02,10.68318655]
[1747975292818,134.72,182.06,182.02,10.68318655]
[1747975293825,134.7551121,182.06,182.02,10.72173494]
[1747975294021,5.4925,182.05,182.02,10.72173494]
[1747975294220,134.7551121,182.06,182.02,10.72173494]
[1747975294631,140.2474121,182.06,182.02,10.72173494]
[1747975295029,134.7551121,182.06,182.02,10.72173494]
[1747975295217,140.2475121,182.06,182.02,10.72173494]
[1747975295422,134.7551121,182.06,182.02,10.72173494]
[1747975295721,140.2475121,182.06,182.02,16.21503494]
[1747975295928,134.7551121,182.06,182.02,10.72173494]
[1747975296428,140.2475121,182.06,182.02,16.21493494]
[1747975296627,134.7551121,182.06,182.02,10.72173494]
[1747975297626,140.2474121,182.06,182.02,16.21483494]
[1747975298227,140.2474121,182.06,182.03,5.493]
[1747975298424,134.7551121,182.06,182.02,10.72173494]
[1747975298634,0.0351121,182.06,182.02,10.72173494]
[1747975298930,4.92912744,182.09,182.07,5.4916]
[1747975299126,4.92912744,182.09,182.03,1.8433]
[1747975299328,4.92912744,182.09,182.08,5.4915]
[1747975300131,1.89422744,182.09,182.08,5.4915]
[1747975300433,0.03466637,182.1,182.09,5.4912]
[1747975301633,0.03466637,182.1,182.08,5.4915]
[1747975302122,0.03466637,182.1,182.09,5.4912]
[1747975302323,0.03466637,182.1,182.07,0.03891101]
[1747975302930,0.03466637,182.1,182.08,5.4913]
[1747975304233,0.03466637,182.1,182.09,5.4912]
[1747975305332,0.03466637,182.1,182.08,5.4914]
[1747975305730,0.03466637,182.1,182.08,5.4913]
[1747975305932,0.03466637,182.1,182.07,0.03891101]
[1747975306327,0.03466637,182.1,182.08,5.4913]
[1747975306530,0.03466637,182.1,182.07,0.03891101]
[1747975307034,0.03466637,182.1,182.08,5.4915]
[1747975307423,0.03466637,182.1,182.07,0.03891101]
[1747975307624,0.03466637,182.1,182.09,5.4912]
[1747975308025,0.03466637,182.1,182.07,0.03891101]
[1747975308537,134.62,182.18,182.07,0.03891101]
[1747975308735,5.4899,182.14,182.1,5.4908]
[1747975309430,5.4901,182.13,182.1,5.53262907]
[1747975309630,0.04005949,182.14,182.11,5.4906]
[1747975309936,0.04005949,182.14,182.1,0.04182907]
[1747975310235,0.04005949,182.14,182.11,5.4905]
[1747975310428,0.04005949,182.14,182.1,0.04182907]
[1747975311534,5.52975949,182.14,182.11,5.4904]
[1747975311735,0.04005949,182.14,182.11,5.4904]
[1747975311931,0.04005949,182.14,182.1,5.53272907]
[1747975312134,0.04005949,182.14,182.1,0.04182907]
[1747975312436,5.53005949,182.14,182.1,5.53252907]
[1747975312737,0.04005949,182.14,182.1,5.53252907]
[1747975312932,0.04005949,182.14,182.1,0.04182907]
[1747975313437,5.52995949,182.14,182.1,5.53242907]
[1747975313636,5.52995949,182.14,182.1,0.04182907]
[1747975313940,0.04005949,182.14,182.1,0.04182907]
[1747975314737,0.04005949,182.14,182.11,5.4904]
[1747975315035,0.04005949,182.14,182.1,0.04182907]
[1747975315230,0.04005949,182.14,182.1,5.53272907]
[1747975315837,0.04005949,182.14,182.11,5.4906]
[1747975316636,0.04005949,182.14,182.1,0.04182907]
[1747975316940,5.52975949,182.14,182.1,0.04182907]
[1747975317534,0.04005949,182.14,182.11,5.4905]
[1747975317731,0.04005949,182.14,182.1,0.04182907]
[1747975318135,0.04005949,182.14,182.11,5.4906]
[1747975318838,0.04005949,182.14,182.12,5.4903]
[1747975319135,0.04005949,182.14,182.1,0.04182907]
[1747975320449,0.04005949,182.14,182.1,5.53252907]
[1747975320733,0.04005949,182.14,182.1,0.04182907]
[1747975322141,5.52985949,182.14,182.1,0.04182907]
[1747975322834,0.04005949,182.14,182.1,0.04182907]
[1747975323546,5.4902,182.13,182.1,0.04182907]
[1747975323746,0.04005949,182.14,182.1,0.04182907]
[1747975324043,5.4901,182.13,182.1,0.04182907]
[1747975324446,5.4906,182.11,182.1,0.04182907]
[1747975327344,5.4928,182.04,182.03,1.8433]
[1747975327944,134.6,182.12,182.02,10.68318655]
[1747975328145,2.55461387,182.11,182.02,10.68318655]
[1747975328445,0.04169127,182.08,182.05,0.03658874]
[1747975328647,5.4922,182.06,182.05,0.03658874]
[1747975330352,5.4922,182.06,182.05,8.874e-05]
[1747975331451,140.1119,182.07,182.05,8.874e-05]
[1747975331656,134.62,182.07,182.05,8.874e-05]
[1747975331960,134.66169127,182.08,182.05,8.874e-05]
[1747975332454,5.4922,182.06,182.05,8.874e-05]
[1747975339662,134.66169127,182.08,182.05,8.874e-05]
[1747975339963,0.04169127,182.08,182.05,8.874e-05]
[1747975341966,5.492,182.07,182.05,8.874e-05]
[1747975342468,0.04169127,182.08,182.05,8.874e-05]
[1747975342862,5.4919,182.07,182.05,8.874e-05]
[1747975343064,0.04169127,182.08,182.05,8.874e-05]
[1747975343563,5.4919,182.07,182.05,8.874e-05]
[1747975343865,0.04169127,182.08,182.05,8.874e-05]
[1747975344055,5.53349127,182.08,182.05,5.49248874]
[1747975344470,5.4919,182.07,182.05,8.874e-05]
[1747975344968,5.4922,182.06,182.05,8.874e-05]
[1747975345561,0.04169127,182.08,182.05,8.874e-05]
[1747975346771,0.04169127,182.08,182.06,5.4919]
[1747975346976,0.04169127,182.08,182.05,8.874e-05]
[1747975347268,0.04169127,182.08,182.07,5.4919]
[1747975348075,6.57216992,182.17,182.05,5.49414395]
[1747975348267,6.57216992,182.17,182.06,3.8487]
[1747975348468,5.4896,182.15,182.11,5.4906]
[1747975348971,5.52719516,182.15,182.11,0.03582263]
[1747975349171,5.52719516,182.15,182.12,5.4901]
[1747975349373,0.03759516,182.15,182.11,0.03582263]
[1747975350566,5.52719516,182.15,182.11,0.03582263]
[1747975350877,0.03759516,182.15,182.11,0.03582263]
[1747975351575,0.03759516,182.15,182.14,5.4897]
[1747975352069,139.868,182.2,182.16,5.4889]
[1747975352272,134.38,182.2,182.11,5.49405521]
[1747975352469,5.4879,182.21,182.11,5.49405521]
[1747975352774,136.3785,182.24,182.11,5.49405521]
[1747975352968,134.34,182.25,182.11,5.49405521]
[1747975353175,0.03741181,182.2,182.16,0.04075846]
[1747975353475,0.03741181,182.2,182.17,5.4887]
[1747975354578,0.03741181,182.2,182.18,5.4885]
[1747975354769,0.03741181,182.2,182.16,0.04075846]
[1747975355675,0.03741181,182.2,182.19,5.4882]
[1747975357075,134.34,182.25,182.17,104.34]
[1747975357265,5.4862,182.26,182.17,104.34]
[1747975357872,0.0382827,182.23,182.2,0.03640057]
[1747975358078,0.0382827,182.23,182.22,5.4871]
[1747975361777,134.32,182.29,182.25,5.4861]
[1747975361980,134.32,182.29,182.19,134.3]
[1747975362275,134.32,182.29,182.2,3.9892]
[1747975362579,139.8055,182.29,182.25,5.4862]
[1747975362882,134.35852801,182.29,182.25,5.52481329]
[1747975363174,5.4861,182.26,182.25,0.03861329]
[1747975364376,5.4859,182.27,182.25,0.03861329]
[1747975364781,134.35852801,182.29,182.25,0.03861329]
[1747975364973,134.35852801,182.29,182.25,5.52501329]
[1747975365376,134.35852801,182.29,182.25,0.03861329]
[1747975365776,5.4856,182.28,182.25,0.03861329]
[1747975366084,5.4856,182.28,182.25,5.52501329]
[1747975366269,5.4856,182.28,182.25,0.03861329]
[1747975366684,134.35852801,182.29,182.25,0.03861329]
[1747975368180,5.4859,182.27,182.25,0.03861329]
[1747975368484,134.35852801,182.29,182.25,0.03861329]
[1747975368985,139.84392801,182.29,182.25,5.52481329]
[1747975369184,134.35852801,182.29,182.25,5.52481329]
[1747975369386,134.35852801,182.29,182.25,0.03861329]
[1747975370485,139.85258322,182.29,182.14,104.28]
[1747975370785,5.4877,182.21,182.17,5.4888]
[1747975370992,133.9,182.23,182.13,133.9]
[1747975371483,0.03763544,182.2,182.16,0.04218097]
[1747975371986,0.03763544,182.2,182.17,5.4887]
[1747975372285,0.03763544,182.2,182.16,0.04218097]
[1747975372685,0.03763544,182.2,182.16,5.53128097]
[1747975372886,0.03763544,182.2,182.16,0.04218097]
[1747975373879,0.03763544,182.2,182.17,5.4886]
[1747975374080,0.03763544,182.2,182.16,0.04218097]
[1747975375083,0.03763544,182.2,182.19,5.4882]
[1747975378791,5.4863,182.26,182.22,5.487]
[1747975379091,5.4863,182.26,182.16,5.8146]
[1747975379294,139.3859,182.27,182.24,5.4865]
[1747975379495,133.9,182.27,182.18,5.49405521]
[1747975379690,474.5,182.32,182.2,104.28]
[1747975379895,0.03481275,182.28,182.24,0.03895387]
[1747975381093,0.03481275,182.28,182.25,5.4862]
[1747975381296,0.03481275,182.28,182.24,0.03895387]
[1747975381993,0.03481275,182.28,182.25,5.4864]
[1747975382292,0.03481275,182.28,182.24,0.03895387]
[1747975382595,0.03481275,182.28,182.27,5.4859]
[1747975390297,5.4839,182.34,182.24,5.53300908]
[1747975390496,133.86,182.36,182.24,5.53300908]
[1747975390701,133.86,182.36,182.24,5.49405521]
[1747975391199,133.86,182.36,182.28,0.04203772]
[1747975391605,4.4069823,182.35,182.28,0.04203772]
[1747975391898,4.4069823,182.35,182.23,104.26]
[1747975391899,2.53880539,182.34,182.13,5.49405521]
[1747975392105,2.53880539,182.33,182.19,5.49405521]
[1747975392401,1.8672,182.35,182.23,5.487]
[1747975392402,136.39880539,182.32,182.23,5.487]
[1747975392599,2.53880539,182.31,182.19,5.49405521]
[1747975392802,0.0394977,182.27,182.23,0.03745687]
[1747975394408,0.0394977,182.27,182.23,5.52445687]
[1747975395206,5.4864,182.26,182.23,0.03745687]
[1747975396305,5.4864,182.26,182.23,5.52445687]
[1747975396706,5.5253977,182.27,182.23,0.03745687]
[1747975396906,0.0394977,182.27,182.23,0.03745687]
[1747975397409,0.0394977,182.27,182.26,5.4862]
[1747975397608,0.0394977,182.27,182.23,0.03745687]
[1747975397904,0.0394977,182.27,182.25,5.4862]
[1747975398107,0.0394977,182.27,182.23,0.03745687]
[1747975399014,5.5255977,182.27,182.23,5.52435687]
[1747975399211,5.5255977,182.27,182.23,0.03745687]
[1747975399515,0.0394977,182.27,182.23,0.03745687]
[1747975400418,0.0394977,182.27,182.25,5.4863]
[1747975403633,0.0394977,182.27,182.26,5.4862]
[1747975404032,0.0394977,182.27,182.23,0.03745687]
[1747975404226,0.0394977,182.27,182.25,5.4864]
[1747975404828,0.0394977,182.27,182.26,5.4862]
[1747975409539,0.0394977,182.27,182.25,5.4862]
[1747975409733,0.0394977,182.27,182.24,2.0009]
[1747975410233,0.0394977,182.27,182.25,5.4865]
[1747975410435,0.0394977,182.27,182.24,2.0009]
[1747975410934,0.0394977,182.27,182.26,5.4862]
[1747975411336,0.0394977,182.27,182.24,2.0009]
[1747975411629,133.42,182.35,182.24,7.49495521]
[1747975411834,133.42,182.35,182.24,9.45045521]
[1747975412135,5.485,182.3,182.24,9.45045521]
[1747975412538,5.485,182.3,182.25,0.03765194]
[1747975412738,5.485,182.3,182.27,5.4856]
[1747975413335,5.4847,182.31,182.28,5.4854]
[1747975413535,133.42,182.36,182.28,0.03979329]
[1747975414343,5.4846,182.32,182.28,5.52519329]
[1747975414835,5.4846,182.32,182.28,0.03979329]
[1747975415343,5.4846,182.32,182.29,5.4851]
[1747975415532,5.4839,182.34,182.28,0.03979329]
[1747975415731,133.42,182.36,182.28,0.03979329]
[1747975416033,5.4842,182.33,182.28,0.03979329]
[1747975416437,133.42,182.36,182.28,0.03979329]
[1747975416634,5.4842,182.33,182.3,5.4849]
[1747975418042,5.4839,182.34,182.31,5.4846]
[1747975418241,5.4839,182.34,182.31,5.52282446]
[1747975418437,133.42,182.36,182.31,0.03822446]
[1747975419047,5.4844,182.33,182.31,0.03822446]
[1747975419243,133.42,182.36,182.31,0.03822446]
[1747975419644,5.4843,182.33,182.31,0.03822446]
[1747975423546,5.4839,182.34,182.31,0.03822446]
[1747975423846,133.42,182.36,182.31,0.03822446]
[1747975424051,5.4841,182.33,182.31,0.03822446]
[1747975424448,133.42,182.36,182.31,5.52282446]
[1747975424639,5.4838,182.34,182.31,5.52282446]
[1747975424841,133.42,182.36,182.31,0.03822446]
[1747975425448,5.4838,182.34,182.31,0.03822446]
[1747975425651,5.4838,182.34,182.31,5.52262446]
[1747975425948,5.4836,182.35,182.31,5.52262446]
[1747975426449,133.42,182.36,182.31,0.03822446]
[1747975427050,5.4843,182.33,182.31,0.03822446]
[1747975427251,133.42,182.36,182.31,0.03822446]
[1747975427645,138.36591683,182.36,182.31,0.03822446]
[1747975428652,5.484,182.34,182.31,0.03822446]
[1747975428844,138.36591683,182.36,182.31,0.03822446]
[1747975430239,5.4838,182.34,182.31,5.52272446]
[1747975432256,138.9032,182.36,182.33,5.4839]
[1747975432452,133.42,182.36,182.31,0.03822446]
[1747975432942,5.4843,182.33,182.31,0.03822446]
[1747975433154,133.42,182.36,182.31,0.03822446]
[1747975433357,5.4843,182.33,182.31,0.03822446]
[1747975433855,5.4844,182.32,182.31,0.03822446]
[1747975435057,138.36591683,182.36,182.31,0.03822446]
[1747975435752,5.4843,182.33,182.31,0.03822446]
[1747975436859,138.36591683,182.36,182.31,0.03822446]
[1747975438660,5.4844,182.32,182.31,0.03822446]
[1747975440159,5.4842,182.33,182.31,0.03822446]
[1747975441062,5.4844,182.32,182.31,0.03822446]
[1747975441259,4.94591683,182.35,182.31,0.03822446]
[1747975441463,5.4841,182.33,182.31,0.03822446]
[1747975441662,4.94591683,182.35,182.31,0.03822446]
[1747975442164,5.484,182.34,182.31,0.03822446]
[1747975442965,5.484,182.34,182.31,5.52272446]
[1747975443463,5.484,182.34,182.31,0.03822446]
[1747975444064,5.484,182.34,182.31,5.52272446]
[1747975444269,138.36591683,182.36,182.31,0.03822446]
[1747975444866,5.4844,182.32,182.31,0.03822446]
[1747975448573,5.4844,182.32,182.31,2.446e-05]
[1747975448871,8.04557809,182.32,182.31,2.446e-05]
[1747975449065,11.99517809,182.32,182.31,2.446e-05]
[1747975450765,9.434,182.32,182.31,2.446e-05]
[1747975452472,5.4844,182.32,182.31,2.446e-05]
[1747975452668,12.11609415,182.33,182.31,2.446e-05]
[1747975452864,6.63199415,182.33,182.31,2.446e-05]
[1747975453868,5.4844,182.32,182.31,2.446e-05]
[1747975458972,137.7844,182.32,182.31,2.446e-05]
[1747975461568,132.3,182.32,182.31,2.446e-05]
[1747975462276,137.7844,182.32,182.31,2.446e-05]
[1747975467885,142.75430857,182.32,182.31,2.446e-05]
[1747975468696,5.4865,182.25,182.2,2.0189]
[1747975469395,137.7863,182.26,182.22,5.4872]
[1747975469595,137.8209961,182.26,182.22,5.5286025]
[1747975471698,132.3346961,182.26,182.22,0.0414025]
[1747975472997,132.3346961,182.26,182.25,5.4865]
[1747975473294,0.0346961,182.26,182.25,5.4865]
[1747975487705,0.0346961,182.26,182.25,8.99813316]
[1747975489802,0.0346961,182.26,182.25,5.4865]
[1747975490009,0.0346961,182.26,182.24,5.4867]
[1747975491404,5.5209961,182.26,182.23,5.4871]
[1747975491705,5.5209961,182.26,182.22,3.55303566]
[1747975491706,0.0346961,182.26,182.22,3.55303566]
[1747975491912,5.5209961,182.26,182.23,5.487]
[1747975492205,0.0346961,182.26,182.23,5.487]
[1747975492401,0.0346961,182.26,182.24,3.51163316]
[1747975492607,0.0346961,182.26,182.25,5.4865]
[1747975493008,132.32,182.3,182.24,3.51163316]
[1747975493210,132.32,182.3,182.26,3.51163316]
[1747975493705,132.32,182.3,182.27,5.4856]
[1747975494011,132.32,182.3,182.27,0.03689478]
[1747975495213,5.4853,182.29,182.27,5.52269478]
[1747975495513,132.32,182.3,182.27,5.52269478]
[1747975496208,132.32,182.3,182.27,0.03689478]
[1747975497014,137.805,182.3,182.27,0.03689478]
[1747975497414,137.805,182.3,182.27,5.52269478]
[1747975497617,5.4854,182.29,182.27,0.03689478]
[1747975497913,132.32,182.3,182.27,0.03689478]
[1747975498112,5.4855,182.29,182.27,0.03689478]
[1747975498314,132.32,182.3,182.27,0.03689478]
[1747975499116,5.4856,182.28,182.27,0.03689478]
[1747975501817,137.28990857,182.3,182.27,0.03689478]
[1747975502419,5.4856,182.28,182.27,0.03689478]
[1747975503515,5.4854,182.29,182.27,0.03689478]
[1747975503721,137.28990857,182.3,182.27,0.03689478]
[1747975503925,2.56123412,182.29,182.27,0.03689478]
[1747975504113,5.4855,182.29,182.27,0.03689478]
[1747975504620,132.32,182.3,182.27,0.03689478]
[1747975504817,137.8053,182.3,182.27,0.03689478]
[1747975505924,5.4854,182.29,182.27,0.03689478]
[1747975506725,137.805,182.3,182.27,0.03689478]
[1747975506924,132.32,182.3,182.27,0.03689478]
[1747975507424,5.4855,182.29,182.27,0.03689478]
[1747975508622,5.4855,182.29,182.27,5.52279478]
[1747975508925,132.32,182.3,182.27,5.52279478]
[1747975509129,132.32,182.3,182.27,0.03689478]
[1747975509622,132.32,182.3,182.28,5.4855]
[1747975509922,132.32,182.3,182.27,0.03689478]
[1747975510119,4.96990857,182.33,182.27,0.03689478]
[1747975510424,4.96990857,182.32,182.27,0.03689478]
[1747975510825,5.4852,182.3,182.27,5.52279478]
[1747975511929,4.96990857,182.32,182.27,5.52279478]
[1747975512526,5.4852,182.3,182.27,5.52279478]
[1747975513931,5.4852,182.3,182.28,5.4855]
[1747975514132,5.4848,182.31,182.28,5.4855]
[1747975514535,136.66990857,182.34,182.29,5.485]
[1747975515431,5.4844,182.32,182.29,5.485]
[1747975516232,136.66990857,182.34,182.27,0.03689478]
[1747975516832,5.4852,182.3,182.27,5.52269478]
[1747975517334,136.66990857,182.34,182.27,0.03689478]
[1747975517534,5.4854,182.29,182.27,0.03689478]
[1747975518136,136.66990857,182.34,182.27,0.03689478]
[1747975518635,5.4846,182.32,182.28,5.4853]
[1747975518827,136.66990857,182.34,182.27,0.03689478]
[1747975519440,5.4844,182.32,182.27,0.03689478]
[1747975520228,136.66990857,182.34,182.28,3.51195371]
[1747975520629,5.4842,182.33,182.3,5.4848]
[1747975520830,5.4842,182.33,182.28,3.51195371]
[1747975521030,136.66990857,182.34,182.3,3.51195371]
[1747975521531,5.4846,182.32,182.3,3.51195371]
[1747975521932,4.96990857,182.34,182.3,3.51195371]
[1747975523738,608.61195371,182.37,182.28,7.41455371]
[1747975523940,3.51195371,182.35,182.31,0.03915053]
[1747975524627,5.4844,182.32,182.31,0.03915053]
[1747975528747,5.4842,182.33,182.31,0.03915053]
[1747975529042,4.96990857,182.36,182.31,0.03915053]
[1747975529241,5.4844,182.33,182.31,0.03915053]
[1747975529537,4.96990857,182.36,182.31,0.03915053]
[1747975530940,5.4844,182.32,182.31,0.03915053]
[1747975534641,5.4842,182.33,182.31,0.03915053]
[1747975535140,5.4844,182.32,182.31,0.03915053]
[1747975535339,605.1,182.37,182.31,0.03915053]
[1747975536246,5.4843,182.33,182.31,0.03915053]
[1747975536739,605.1,182.37,182.31,0.03915053]
[1747975537741,131.02,182.37,182.31,0.03915053]
[1747975539038,130.98,182.36,182.31,0.03915053]
[1747975539240,130.98,182.37,182.31,0.03915053]
[1747975540243,4.96990857,182.41,182.32,5.48066216]
[1747975540546,4.96990857,182.41,182.35,0.036831]
[1747975540842,5.4832,182.36,182.35,0.036831]
[1747975541041,136.4632,182.36,182.35,0.036831]
[1747975542938,130.98,182.36,182.22,5.48130183]
[1747975543141,130.98,182.36,182.24,1.9185]
[1747975543636,130.98,182.36,182.26,5.4861]
[1747975543942,0.03736393,182.33,182.29,0.04127887]
[1747975544143,5.4849,182.31,182.29,0.04127887]
[1747975544339,136.4649,182.31,182.29,0.04127887]
[1747975544540,130.98,182.31,182.29,0.04127887]
[1747975546750,136.4647,182.31,182.29,0.04127887]
[1747975546944,130.98,182.31,182.29,0.04127887]
[1747975547341,136.4648,182.31,182.29,0.04127887]
[1747975547745,5.485,182.3,182.29,0.04127887]
[1747975548042,130.98,182.31,182.15,131.0]
[1747975548350,5.4856,182.28,182.18,5.48130183]
[1747975548945,5.486,182.27,182.23,5.4868]
[1747975549344,0.03831632,182.27,182.23,0.03568946]
[1747975550248,5.52441632,182.27,182.23,5.52258946]
[1747975551345,5.52441632,182.27,182.23,0.03568946]
[1747975551542,5.52441632,182.27,182.24,5.4867]
[1747975552049,0.03831632,182.27,182.23,0.03568946]
[1747975552950,0.03831632,182.27,182.26,5.4862]
[1747975554348,0.03831632,182.27,182.23,5.51699129]
[1747975554953,0.03831632,182.27,182.25,5.4863]
[1747975555257,0.03831632,182.27,182.23,0.03568946]
[1747975555452,5.4868,182.24,182.23,0.03568946]
[1747975561763,5.4883,182.19,182.13,5.48130183]
[1747975562059,5.4867,182.25,182.16,5.48130183]
[1747975562457,5.4867,182.25,182.21,5.4874]
[1747975562656,5.52796413,182.25,182.21,0.03559101]
[1747975563560,5.52796413,182.25,182.22,5.4874]
[1747975564258,0.04126413,182.25,182.21,0.03559101]
[1747975564760,0.04126413,182.25,182.24,5.4868]
[1747975566064,0.04126413,182.25,182.23,5.487]
[1747975566454,0.04126413,182.25,182.21,0.03559101]
[1747975567157,0.04126413,182.25,182.24,5.4868]
[1747975568357,130.36,182.32,182.27,5.4856]
[1747975568553,5.4847,182.31,182.23,1.8242]
[1747975568750,5.4847,182.31,182.27,5.4856]
[1747975568952,5.4847,182.31,182.23,1.8242]
[1747975569154,135.8445,182.32,182.23,1.8242]
[1747975569461,0.0401672,182.29,182.26,0.03904814]
[1747975570057,5.5256672,182.29,182.26,5.52514814]
[1747975570358,0.0401672,182.29,182.26,0.03904814]
[1747975570554,5.4856,182.28,182.26,0.03904814]
[1747975571263,5.4859,182.27,182.26,0.03904814]
[1747975571461,0.0401672,182.29,182.26,0.03904814]
[1747975571860,5.4857,182.28,182.26,0.03904814]
[1747975572368,5.4859,182.27,182.26,0.03904814]
[1747975574571,135.8259,182.27,182.26,0.03904814]
[1747975574961,130.34,182.27,182.19,5.4882]
[1747975575269,130.34,182.27,182.18,104.26]
[1747975575967,0.04041249,182.24,182.21,5.52221567]
[1747975576768,5.52741249,182.24,182.21,0.03481567]
[1747975577272,5.4874,182.22,182.21,0.03481567]
[1747975578674,135.8274,182.22,182.21,0.03481567]
[1747975578972,130.34,182.22,182.15,5.4893]
[1747975579173,130.34,182.22,182.13,5.48130183]
[1747975579765,0.03858186,182.19,182.16,5.52408798]
[1747975580275,5.4888,182.18,182.16,0.03498798]
[1747975580462,0.03858186,182.19,182.16,0.03498798]
[1747975580970,5.4888,182.18,182.16,0.03498798]
[1747975581277,0.03858186,182.19,182.16,0.03498798]
[1747975582166,5.52708186,182.19,182.16,0.03498798]
[1747975582371,5.52708186,182.19,182.16,5.52398798]
[1747975582968,0.03858186,182.19,182.06,104.28]
[1747975583171,1.9261,182.18,182.06,109.76130183]
[1747975583364,129.82,182.17,182.09,5.4912]
[1747975583673,129.82,182.17,182.04,117.44975528]
[1747975583968,5.491,182.11,182.09,0.03645492]
[1747975584171,0.04080524,182.12,182.09,0.03645492]
[1747975584371,129.88080524,182.12,182.09,0.03645492]
[1747975584871,0.04080524,182.12,182.09,0.03645492]
[1747975585263,0.04080524,182.12,182.11,5.4907]
[1747975585465,129.84,182.16,182.09,0.03645492]
[1747975585866,129.84,182.16,182.14,5.4896]
[1747975586475,129.84,182.16,182.13,5.52881807]
[1747975586874,135.3292,182.16,182.13,5.52881807]
[1747975587469,129.84,182.16,182.13,5.52881807]
[1747975587671,129.84,182.16,182.14,5.4897]
[1747975588080,0.03516586,182.17,182.14,5.4897]
[1747975588269,0.03516586,182.17,182.15,5.4894]
[1747975588470,0.03516586,182.17,182.13,0.03881807]
[1747975588670,5.52406586,182.17,182.13,0.03881807]
[1747975588878,5.52406586,182.17,182.14,5.4896]
[1747975589381,0.03516586,182.17,182.15,5.4894]
[1747975589779,0.03516586,182.17,182.13,0.03881807]
[1747975590475,5.52426586,182.17,182.14,5.4897]
[1747975591072,0.03516586,182.17,182.13,0.03881807]
[1747975591677,5.4897,182.15,182.13,0.03881807]
[1747975591878,0.03516586,182.17,182.13,0.03881807]
[1747975592181,5.4894,182.16,182.13,0.03881807]
[1747975592676,0.03516586,182.17,182.13,0.03881807]
[1747975592882,5.4894,182.16,182.13,0.03881807]
[1747975593680,5.52416586,182.17,182.13,0.03881807]
[1747975593984,0.03516586,182.17,182.13,0.03881807]
[1747975594884,0.03516586,182.17,182.15,5.4893]
[1747975595985,0.03516586,182.17,182.16,5.4892]
[1747975598387,0.03516586,182.17,182.15,5.4894]
[1747975599184,5.52406586,182.17,182.14,5.4897]
[1747975599390,0.03516586,182.17,182.13,0.03881807]
[1747975599787,0.03516586,182.17,182.15,5.4894]
[1747975600989,5.52416586,182.17,182.14,5.4897]
[1747975601789,5.52416586,182.17,182.15,5.4895]
[1747975602082,0.03516586,182.17,182.15,5.4895]
[1747975602277,0.03516586,182.17,182.13,0.03881807]
[1747975602484,0.03516586,182.17,182.16,5.4892]
[1747975605890,0.03516586,182.17,182.16,109.7892]
[1747975606884,134.80686465,182.27,182.18,5.48130183]
[1747975607090,134.80686465,182.27,182.19,3.7914]
[1747975607389,5.4864,182.26,182.22,5.4872]
[1747975607589,134.80686465,182.27,182.22,5.4872]
[1747975607786,0.03707245,182.26,182.23,0.04095064]
[1747975608491,5.4867,182.25,182.23,0.04095064]
[1747975609891,5.4868,182.24,182.23,0.04095064]
[1747975610088,5.4868,182.24,182.23,5.064e-05]
[1747975612595,5.4865,182.25,182.23,5.064e-05]
[1747975612791,0.03707245,182.26,182.23,5.064e-05]
[1747975613694,5.4867,182.25,182.23,5.064e-05]
[1747975614091,0.03707245,182.26,182.23,5.064e-05]
[1747975614693,0.03707245,182.26,182.23,5.48705064]
[1747975614694,5.52347245,182.26,182.23,5.48705064]
[1747975615295,0.03707245,182.26,182.25,5.4865]
[1747975615596,0.03707245,182.26,182.23,5.064e-05]